Cogmind - Beta 16 @@@ ROGUE MODE // 2026.01.31 @ 13:03:02 Player: DreamCore Result: Destroyed by Lightning with EMDS Performance ------------- Evolutions (4) 2000 Regions Visited (14) 2800 Robots Destroyed (124) 620 Value Destroyed (3559) 3559 Prototype IDs (36) 720 Alien Tech Used (0) 0 Bonus (3846) 3846 TOTAL SCORE: 13545 Bonus ------- High Alert Combat Kills 61 Follower Combat Kills 2466 Network Hubs Disabled 400 Aligned with FarCom 300 Built Enhanced Grunts 300 Met R17 at Cetus 500 Friendly Fire -181 Cogmind --------- Core Integrity 0/850 Matter 300/300 Energy 100/100 System Corruption 22% Temperature Cool (0) Movement Core (50) Location -6/Hub_04(d) Parts ------- > --- POWER (1) -------- (None) > --- PROPULSION (5) --- (None) > --- UTILITY (7) ------ Improved Signal Interpreter > --- WEAPON (2) ------- (None) > --- INVENTORY (5) ---- Combat Airjet Advanced Heat Sink Trap Scanner Microactuators Improved Medium Armor Plating Peak State ------------ > --- POWER ------------ Neutrino Core > --- PROPULSION ------- Combat Airjet Combat Airjet Combat Airjet Combat Airjet Antigrav System > --- UTILITY ---------- Advanced Heat Sink Improved Cooling System Large Storage Unit Improved Signal Interpreter Advanced Terrain Scanner Terrain Scan Processor Centrium Medium Armor Plating > --- WEAPON ----------- Advanced Variable Charge Gun Advanced Variable Charge Gun > --- INVENTORY -------- Quantum Reactor Combat Airjet Combat Airjet Gravmag Array Biomechanical Wings Advanced Heat Sink Trap Scanner Microactuators Trap Reconfigurator Beamcaster Rocket Array Remote Datajack Segregator Phasing Sabre [Rating: 85] Favorites ----------- Power Ion Engine Engine Ion Engine Power Core Neutrino Core Reactor Antimatter Reactor Propulsion Combat Airjet Treads Armored Treads Leg Aluminum Leg Wheel Compact Wheel Hover Unit Combat Airjet Flight Unit Biomechanical Wings Utility Terrain Scan Processor Device Advanced Terrain Scanner Storage Large Storage Unit Processor Terrain Scan Processor Protection Weapon Shielding Weapon Enhanced Autogun Energy Gun Gatling Laser Ballistic Gun Enhanced Autogun Ballistic Cannon Improved Light Cannon Launcher Advanced EMP Blaster Special Weapon Remote Datajack Slashing Weapon Chainsword Build | -11 -10 -10 -10 -9 -8 -8 -7 -6 -6 -6 -6 -6 -6 -6 ------- Run | Yrd Mat Min Exi Min Mat Sto Fac Fac Was Fac Ext Cet Arc Hub Slots Evolved 8 | . . . . . 4 . 2 2 . . . . . . Power . | . . . . . . . . . . . . . . . Propulsion 3 | . . . . . 2 . . 1 . . . . . . Utility 5 | . . . . . 2 . 2 1 . . . . . . Weapon . | . . . . . . . . . . . . . . . Parts Attached 119 | . 5 3 . 3 11 24 23 9 2 1 24 9 3 2 Power 18 | . 2 . . . . 6 2 . 1 . 3 2 1 1 Engine 8 | . 2 . . . . 4 1 . . . 1 . . . Core 7 | . . . . . . 2 1 . . . 1 2 1 . Reactor 3 | . . . . . . . . . 1 . 1 . . 1 Propulsion 36 | . . 1 . 1 4 10 9 5 . . 3 1 1 1 Treads 4 | . . . . . . . 4 . . . . . . . Leg 15 | . . 1 . 1 4 8 1 . . . . . . . Wheel 6 | . . . . . . 2 4 . . . . . . . Hover 10 | . . . . . . . . 5 . . 2 1 1 1 Flight 1 | . . . . . . . . . . . 1 . . . Utility 34 | . 3 1 . 1 3 1 9 3 . 1 10 2 . . Device 21 | . 1 1 . . 2 1 4 3 . 1 8 . . . Storage 2 | . 1 . . . . . 1 . . . . . . . Processor 6 | . . . . . 1 . 3 . . . 2 . . . Hackware . | . . . . . . . . . . . . . . . Protection 5 | . 1 . . 1 . . 1 . . . . 2 . . Artifact . | . . . . . . . . . . . . . . . Weapon 31 | . . 1 . 1 4 7 3 1 1 . 8 4 1 . Energy Gun 14 | . . 1 . . . 1 1 1 1 . 4 4 1 . Energy Cannon . | . . . . . . . . . . . . . . . Ballistic Gun 8 | . . . . . 3 4 1 . . . . . . . Ballistic Cannon 1 | . . . . 1 . . . . . . . . . . Launcher 3 | . . . . . 1 2 . . . . . . . . Special Weapon 1 | . . . . . . . . . . . 1 . . . Impact Weapon . | . . . . . . . . . . . . . . . Slashing Weapon 4 | . . . . . . . 1 . . . 3 . . . Piercing Weapon . | . . . . . . . . . . . . . . . Special Melee Weapon . | . . . . . . . . . . . . . . . Unidentified Prototypes 10 | . . . . . 2 4 . . . . 2 2 . . Parts Lost 58 | . . . . . 1 13 17 . . . 7 3 3 14 Power 9 | . . . . . . 3 2 . . . 1 2 . 1 Propulsion 22 | . . . . . . 7 7 . . . . 1 2 5 Utility 18 | . . . . . 1 1 5 . . . 6 . . 5 Weapon 9 | . . . . . . 2 3 . . . . . 1 3 Highest Loss Streak 10 | . . . . . 1 6 10 . . . 5 2 2 8 To Critical Strikes 2 | . . . . . . . . . . . . 2 . . Average Backups 12 | . 8 10 10 9 9 9 12 14 15 15 14 13 13 13 Power . | . 1 1 1 1 1 . . . . 1 . 1 1 . Propulsion 2 | . 2 1 1 1 1 . 1 2 4 4 4 4 3 2 Utility 4 | . 2 4 5 4 2 3 6 8 6 6 4 3 4 4 Weapon 3 | . 2 3 3 3 4 4 3 3 4 4 4 4 4 3 Tool/Special . | . . . . . . . . . . . . . . . Unused Backups 42 | . 9 3 1 1 5 4 1 3 1 . 10 . . 4 Power 4 | . 2 . . . 1 . . . . . 1 . . . Propulsion 11 | . 4 2 . . . . . . . . 3 . . 2 Utility 15 | . 1 . 1 1 1 2 1 3 . . 3 . . 2 Weapon 12 | . 2 1 . . 3 2 . . 1 . 3 . . . Tool/Special . | . . . . . . . . . . . . . . . Average Slot Usage (%) 96 | . 98 100 100 100 96 94 91 93 100 100 99 100 95 76 Engine 5 | . 14 14 14 14 9 4 5 . . . . . . . Core 1 | . . . . . . 4 . 6 . . . 6 6 4 Reactor 1 | . . . . . . . . . 5 6 5 . . 1 Leg 14 | . 28 28 28 28 35 30 9 1 . . . . . . Wheel 3 | . . . . . . 1 12 . . . . . . . Hover 11 | . . . . . . . . 24 33 33 32 33 30 22 Device 12 | . . 5 14 5 13 17 11 12 13 13 14 20 20 16 Storage 8 | . 14 14 14 14 9 9 7 6 6 6 6 6 6 5 Processor 14 | . . . . . 7 9 22 26 26 26 24 13 13 11 Protection 2 | . 12 8 . 8 3 . . . . . . 5 6 3 Energy Gun 7 | . 14 14 14 14 3 . . 6 10 13 10 12 7 5 Ballistic Gun 8 | . 14 14 14 6 9 17 12 4 1 . . . . . Peak Build Rating 85 | . 8 9 10 12 28 33 39 61 65 68 72 85 85 80 Average Rating 38 | . 7 8 9 11 23 28 31 48 63 67 64 80 79 63 On Entrance 37 | 6 6 8 9 10 12 27 29 35 61 64 68 72 85 76 Avg Prop Armor Cover (%) 3 | . . . . . . 2 4 5 . . . . . . Naked Turns . | . . . . . . . . . . . . . . . Heaviest Build 55 | 11 19 21 21 23 27 26 37 35 47 46 48 55 55 54 Greatest Support 80 | 20 20 20 20 23 43 55 80 60 60 60 60 60 59 56 Greatest Overweight (x) 2 | . . 1 1 1 . . 2 2 . . . . 1 1 Average Overweight (x) . | . . . 1 . . . . . . . . . . . Largest Inventory Capacity 15 | . 10 10 10 10 10 10 15 15 15 15 15 15 15 15 Average Capacity 12 | . 8 10 10 10 10 10 13 15 15 15 15 15 15 14 Most Carried 15 | . 10 10 10 10 10 10 15 15 15 15 15 15 15 15 Average Carried 12 | . 8 9 9 9 9 9 12 14 15 15 14 14 14 12 Final Capacity 15 | 8 10 10 10 10 10 10 15 15 15 15 15 15 15 5 Final Carried 15 | 6 10 10 10 10 10 10 15 15 15 15 15 15 15 5 Class Distribution -------------------- 31% | Mutant 24% | Scavenger-Skirmisher 16% | Scout 7% | Scavenger-Scout 6% | Commander-Scout 6% | Scavenger-Assassin Dominant Class ---------------- Mutant | -10/Materials Mutant | -10/Mines Mutant | -10/Exiles Mutant | -9/Mines Scavenger-Skirmisher | -8/Materials Scavenger-Skirmisher | -8/Storage Scavenger-Skirmisher | -7/Factory Scout | -6/Factory Scout | -6/Waste Scout | -6/Factory Scout | -6/Extension Commander-Scout | -6/Cetus Scavenger-Scout | -6/Archives Mutant | -6/Hub_04(d) Resources | -11 -10 -10 -10 -9 -8 -8 -7 -6 -6 -6 -6 -6 -6 -6 ----------- Run | Yrd Mat Min Exi Min Mat Sto Fac Fac Was Fac Ext Cet Arc Hub Matter Collected 3823 | 195 101 244 10 53 272 1165 679 . 196 10 552 230 104 12 Remotely . | . . . . . . . . . . . . . . . Salvage Created 4852 | . 143 240 . . 208 1655 1124 . 85 . 494 33 327 543 Parts 269 | . 17 14 . . 15 80 78 . 2 . 27 3 5 28 Haulers Intercepted 7 | . 1 . . . 1 4 1 . . . . . . . Recyclers Shooed 4 | . . . . . . 3 1 . . . . . . . Parts Field Recycled . | . . . . . . . . . . . . . . . Retrieved Matter . | . . . . . . . . . . . . . . . Parts Self-Destructed . | . . . . . . . . . . . . . . . Prevented . | . . . . . . . . . . . . . . . Parts Restored . | . . . . . . . . . . . . . . . Kills | -11 -10 -10 -10 -9 -8 -8 -7 -6 -6 -6 -6 -6 -6 -6 ------- Run | Yrd Mat Min Exi Min Mat Sto Fac Fac Was Fac Ext Cet Arc Hub Combat Hostiles Destroyed 69 | . 6 5 . . 5 29 15 . . . 5 . 4 . Melee 5 | . . . . . . . 3 . . . . . 2 . Guns 45 | . 6 5 . . 2 16 10 . . . 5 . 1 . Cannons 1 | . . . . . 1 . . . . . . . . . AOE 17 | . . . . . 2 13 2 . . . . . . . Classes Destroyed 15 | . 3 3 . . 3 5 1 . . . . . . . Worker 12 | . . . . . . 3 3 . . . . . . 6 Builder 17 | . . . . . 2 2 8 . . . 4 . . 1 Tunneler 2 | . . 1 . . . . . . . . . . . 1 Hauler 7 | . 1 . . . 1 4 1 . . . . . . . Recycler 12 | . . 1 . . . 3 4 . . . 1 . . 3 Mechanic 1 | . . . . . . 1 . . . . . . . . Operator 1 | . . . . . . 1 . . . . . . . . Watcher 3 | . 1 . . . . . . . . . 1 1 . . Swarmer 13 | . 6 3 . . . . 4 . . . . . . . Grunt 31 | . . 2 . . 3 18 3 . . . 5 . . . Duelist 1 | . . . . . . 1 . . . . . . . . Sentry 15 | . . . . . 1 8 2 . . . . . 4 . Demolisher 2 | . . . . . . 2 . . . . . . . . Hunter 3 | . . . . . 1 . 2 . . . . . . . Programmer 4 | . . . . . . . 4 . . . . . . . Best Kill Streak 11 | . 3 3 . . 3 11 11 . . . 4 1 1 10 Combat Bots Only 9 | . 3 3 . . 3 9 5 . . . 2 . 1 . Max Kills in Single Turn 10 | . 1 1 . . 2 8 2 . . . 1 1 1 10 Gunslinging . | . . . . . . . . . . . . . . . Exploded 7 | . . . . . 2 7 2 . . . . . . . Melee 1 | . . . . . . . 1 . . . . . 1 . Uniques/NPCs Destroyed . | . . . . . . . . . . . . . . . Combat | -11 -10 -10 -10 -9 -8 -8 -7 -6 -6 -6 -6 -6 -6 -6 -------- Run | Yrd Mat Min Exi Min Mat Sto Fac Fac Was Fac Ext Cet Arc Hub Hostile Shots Fired 786 | . 19 26 . . 33 125 275 . . 6 28 42 60 172 Missed 252 | . 6 5 . . 11 38 69 . . 5 6 14 21 77 Hits 534 | . 13 21 . . 22 87 206 . . 1 22 28 39 95 Melee 2 | . . . . . . . . . . . . . . 2 Projectile 532 | . 13 21 . . 22 87 206 . . 1 22 28 39 93 AOE 9 | . . . . . . 6 . . . . 1 . . 2 Critical Strikes 21 | . . 1 . . . 2 3 . . . 2 9 2 2 Damage Taken 8895 | . 106 267 . . 348 1544 2529 . . 37 593 685 925 1861 Core 1558 | . 8 41 . . 34 238 348 . . 6 30 83 167 603 Absorbed by Shields 259 | . . . . . . . . . . . 115 144 . . Redirected to Shielding 68 | . 7 36 . . 25 . . . . . . . . . Regen/Repaired (Parts) 115 | . . . . . . . . 113 . . 2 . . . Core Remaining (%) 70 | 100 . . . 80 . 50 50 . . . . . . . Volleys Fired 304 | . 20 22 . 1 18 99 55 . 4 . 55 7 21 2 Largest 2 | . 2 2 . 2 2 2 2 . 2 . 2 2 2 2 Hottest 160 | . 60 85 . 85 110 70 70 . 75 . 160 120 160 156 Shots Fired 562 | . 40 44 . 2 36 194 107 . 8 . 79 9 40 3 Gun 505 | . 40 44 . 2 22 187 103 . 8 . 50 7 39 3 Cannon 12 | . . . . . 12 . . . . . . . . . Launcher 15 | . . . . . 2 7 4 . . . . 2 . . Special 30 | . . . . . . . . . . . 29 . 1 . Kinetic 357 | . 20 22 . 1 21 187 102 . 4 . . . . . Thermal 154 | . 20 22 . 1 13 . . . . . 49 7 39 3 Explosive 9 | . . . . . 2 4 1 . . . . 2 . . Electromagnetic 12 | . . . . . . 3 4 . 4 . 1 . . . Robot Hit Streak 23 | . 6 15 . 1 4 10 23 . 13 . 12 4 14 . Robot Miss Streak 10 | . 3 2 . 1 3 5 3 . 1 . 10 2 4 . Penetration Max . | . . . . . . . . . . . . . . . Secondary Targets 8 | . 1 2 . . . 3 2 . . . . . . . Max Gunslinging Chain 1 | . 1 1 . . . 1 1 . . . . . . . Shots Hit Robots 388 | . 20 30 . 1 20 113 84 . 7 . 66 6 41 . Core Hits 259 | . 11 11 . . 21 91 43 . 1 2 33 18 9 19 Critical Kills . | . . . . . . . . . . . . . . . Critical Parts Destroyed 1 | . . . . . . . 1 . . . . . . . Critical Strikes 5 | . . . . . . . 2 . . . 1 . 2 . Burn 1 | . . . . . . . . . . . 1 . . . Destroy 1 | . . . . . . . 1 . . . . . . . Sever 3 | . . . . . . . 1 . . . . . 2 . Melee Attacks 65 | . . . . . . . 36 . . . 12 . 14 3 Impact . | . . . . . . . . . . . . . . . Slashing 65 | . . . . . . . 36 . . . 12 . 14 3 Piercing . | . . . . . . . . . . . . . . . Sneak Attacks 4 | . . . . . . . 3 . . . 1 . . . Combat Hostiles . | . . . . . . . . . . . . . . . Follow-up Attacks . | . . . . . . . . . . . . . . . Damage Inflicted 11177 | . 233 376 . 16 745 3430 2281 . 138 66 990 412 1297 1193 Guns 5855 | . 229 376 . 16 173 1931 1241 . 138 . 821 129 801 . Cannons 115 | . . . . . 115 . . . . . . . . . Explosions 3660 | . . . . . 457 1497 230 . . . . 283 . 1193 Melee 1365 | . . . . . . . 781 . . . 88 . 496 . Ramming 182 | . 4 . . . . 2 29 . . 66 81 . . . Kinetic 3727 | . 86 168 . 16 199 1931 1241 . 86 . . . . . Thermal 2403 | . 143 208 . . 89 228 . . . . 805 129 801 . Explosive 1641 | . . . . . 457 815 86 . . . . 283 . . Electromagnetic 1859 | . . . . . . 454 144 . 52 . 16 . . 1193 Impact . | . . . . . . . . . . . . . . . Slashing 1365 | . . . . . . . 781 . . . 88 . 496 . Piercing . | . . . . . . . . . . . . . . . Highest Corruption 22 | . . . . . . . 7 . . . 18 18 18 22 Average Corruption 7 | . . . . . . . 2 . . . 5 18 18 18 Corruption Purged . | . . . . . . . . . . . . . . . Corruption Blocked . | . . . . . . . . . . . . . . . Effects 89 | . . . . . . . 18 . . . 25 17 23 6 Message Errors 14 | . . . . . . . 2 . . . 5 1 4 2 Matter Fused 18 | . . . . . . . 3 . . . 3 6 3 3 Heat Flow Errors 9 | . . . . . . . 1 . . . 3 2 3 . Energy Discharges 12 | . . . . . . . 2 . . . 4 3 3 . Parts Fused 2 | . . . . . . . . . . . 1 1 . . Data Loss (minor) 18 | . . . . . . . 5 . . . 6 2 5 . Data Loss (major) 5 | . . . . . . . 2 . . . 1 . 2 . Misfires 2 | . . . . . . . 1 . . . 1 . . . Alerts 3 | . . . . . . . . . . . 1 2 . . Misdirections 3 | . . . . . . . . . . . . . 2 1 Weapon Failures 3 | . . . . . . . 2 . . . . . 1 . Overload Shots . | . . . . . . . . . . . . . . . Overflow Damage 269 | . . . . . 10 8 75 . . 8 25 . 53 90 Projectiles . | . . . . . . . . . . . . . . . Explosions 129 | . . . . . 10 8 21 . . . . . . 90 Melee 140 | . . . . . . . 54 . . 8 25 . 53 . Knockbacks . | . . . . . . . . . . . . . . . Impact . | . . . . . . . . . . . . . . . Kinetic . | . . . . . . . . . . . . . . . Secondary . | . . . . . . . . . . . . . . . Self-Inflicted Damage 380 | . . . . . . . 54 . . 31 40 40 . 215 Shots 6 | . . . . . . . 2 . . . . 2 . 2 Rammed 9 | . . . . . . . 2 . . 5 2 . . . Targets Rammed 12 | . 2 . . . . 1 2 . . 5 2 . . . Kicked 3 | . 2 . . . . 1 . . . . . . . . Crushed . | . . . . . . . . . . . . . . . Highest Temperature 336 | . . 99 . 24 72 38 123 . 28 . 336 138 153 48 Average Temperature 84 | . . 46 . 13 28 20 36 . 18 . 126 67 68 19 Received Heat Transfer 1891 | . . 144 . . 54 657 519 . . . 121 . 153 243 Effects 2 | . . . . . . . . . . . 2 . . . Energy Bleed 1 | . . . . . . . . . . . 1 . . . Matter Decay 1 | . . . . . . . . . . . 1 . . . Siege Activations . | . . . . . . . . . . . . . . . Martial Activations . | . . . . . . . . . . . . . . . Shielding Activations . | . . . . . . . . . . . . . . . Robots Disrupted . | . . . . . . . . . . . . . . . Combat Hostiles . | . . . . . . . . . . . . . . . Robots Corrupted . | . . . . . . . . . . . . . . . Combat Hostiles . | . . . . . . . . . . . . . . . Parts Fried 4 | . . . . . . . . . . . . . . 4 Impact Corruptions 2 | . . . . . . . . . . 1 1 . . . Robots Melted 1 | . . . . . . . . . . . . . 1 . Combat Hostiles 1 | . . . . . . . . . . . . . 1 . Parts Melted 6 | . . . . . . . . . . . 1 . 5 . Heat Transferred 4221 | . 325 449 . . 222 150 . . . . 1804 235 1036 . Parts Sabotaged . | . . . . . . . . . . . . . . . Parts Stolen . | . . . . . . . . . . . . . . . Parts Stripped . | . . . . . . . . . . . . . . . Power Chain Reactions 2 | . . . . . . 2 . . . . . . . . Alert | -11 -10 -10 -10 -9 -8 -8 -7 -6 -6 -6 -6 -6 -6 -6 ------- Run | Yrd Mat Min Exi Min Mat Sto Fac Fac Was Fac Ext Cet Arc Hub Maximum Alert Level 4 | . . . . . . 1 1 . . . 4 3 1 1 Low Security (%) 69 | . 100 100 . 100 100 39 88 100 100 100 44 . . 64 Level 1 17 | . . . . . . 60 11 . . . 9 . 100 35 Level 2 6 | . . . . . . . . . . . 34 7 . . Level 3 5 | . . . . . . . . . . . 10 92 . . Level 4 . | . . . . . . . . . . . 1 . . . Level 5 . | . . . . . . . . . . . . . . . High Security . | . . . . . . . . . . . . . . . Max Security . | . . . . . . . . . . . . . . . Peak Influence 1192 | . 71 70 . 15 152 359 247 102 23 151 1192 920 347 376 Initial 665 | . . . . . . 31 89 102 23 . 56 665 332 72 Average 178 | . 22 12 . . 99 192 76 79 2 56 381 835 295 129 Influence Increases 5935 | . 174 160 . 15 295 1122 677 26 . 351 2134 375 112 494 Destroy 0b10 Robot/C 2460 | . 120 100 . . 120 620 300 . . 120 840 160 80 . Destroy 0b10 Robot/NC 345 | . 10 10 . . 15 75 80 . . 5 85 10 . 55 Destroy Leader 426 | . 24 20 . . 32 140 82 . . 32 96 . . . Allied During Kill 1351 | . . . . . 3 116 . . . 157 905 170 . . Successful Hack 146 | . 18 . . . 3 28 . 26 . . 62 9 . . Disable Machine 360 | . . 15 . . . 75 60 . . . 15 . 30 165 Destroy Structure 532 | . 2 . . . 62 68 50 . . 37 101 26 2 184 Partial Spotted 15 | . . . . . 15 . . . . . . . . . Lose Combat Pursuer 300 | . . 15 . 15 45 . 105 . . . 30 . . 90 Influence Decreases 5579 | . 174 160 . 15 221 999 665 167 68 236 1060 734 734 346 Entered New Map 1520 | . . . . . . 43 108 107 45 . 59 524 498 136 Time Decay 2631 | . 174 160 . 15 188 436 387 60 23 176 551 180 206 75 Lost Part 575 | . . . . . 10 130 170 . . . 70 30 30 135 Lost Ally 703 | . . . . . 23 240 . . . 60 380 . . . Purge Threat 150 | . . . . . . 150 . . . . . . . . Squads Dispatched 28 | . 1 . . . . 6 9 . . 2 4 . . 6 Investigation 7 | . 1 . . . . 2 1 . . . 1 . . 2 Extermination 5 | . . . . . . . 4 . . 1 . . . . Reinforcement 9 | . . . . . . 1 1 . . 1 2 . . 4 Assault 3 | . . . . . . 2 . . . . 1 . . . Garrison 4 | . . . . . . 1 3 . . . . . . . Intercept . | . . . . . . . . . . . . . . . Searches Triggered . | . . . . . . . . . . . . . . . Construction Impeded 3 | . . . . . . 1 . . . . 2 . . . Haulers Reinforced 1 | . . . . . . . 1 . . . . . . . Active Scanning Responses . | . . . . . . . . . . . . . . . Cargo Convoy Interrupts . | . . . . . . . . . . . . . . . Stealth | -11 -10 -10 -10 -9 -8 -8 -7 -6 -6 -6 -6 -6 -6 -6 --------- Run | Yrd Mat Min Exi Min Mat Sto Fac Fac Was Fac Ext Cet Arc Hub Distress Signals 15 | . . . . 1 2 2 1 . . 2 5 2 . . Communications Jammed . | . . . . . . . . . . . . . . . Distress Signals . | . . . . . . . . . . . . . . . Times Spotted 154 | . 12 6 . 1 9 37 25 . . 4 27 8 4 21 Peak Tracking Total 16 | . 4 3 . 1 5 11 7 . . 4 5 5 1 16 Tactical Retreats 13 | . . 1 . 1 1 . 5 . . . 2 . . 3 Traps | -11 -10 -10 -10 -9 -8 -8 -7 -6 -6 -6 -6 -6 -6 -6 ------- Run | Yrd Mat Min Exi Min Mat Sto Fac Fac Was Fac Ext Cet Arc Hub Traps Triggered 9 | . . . . . . . 3 1 . . 1 . . 4 Indirectly 3 | . . . . . . . . . . . . . . 3 Trap Hack Attempts . | . . . . . . . . . . . . . . . Triggered . | . . . . . . . . . . . . . . . Disarmed . | . . . . . . . . . . . . . . . Reprogrammed . | . . . . . . . . . . . . . . . Reused . | . . . . . . . . . . . . . . . Traps Reconfigurated 16 | . . . . . . . . 1 . . 15 . . . Traps Extracted . | . . . . . . . . . . . . . . . Installed . | . . . . . . . . . . . . . . . Triggered . | . . . . . . . . . . . . . . . Machines | -11 -10 -10 -10 -9 -8 -8 -7 -6 -6 -6 -6 -6 -6 -6 ---------- Run | Yrd Mat Min Exi Min Mat Sto Fac Fac Was Fac Ext Cet Arc Hub Machines Disabled 24 | . . 1 . . . 5 4 . . . 1 . 2 11 Max in Single Turn 9 | . . 1 . . . 1 2 . . . . . 1 9 Network Hub 2 | . . . . . . . . . . . . . . 2 Machines Repaired . | . . . . . . . . . . . . . . . Machines Dismantled . | . . . . . . . . . . . . . . . Machines Sabotaged . | . . . . . . . . . . . . . . . Overloaded Fab Kills . | . . . . . . . . . . . . . . . Hacking | -11 -10 -10 -10 -9 -8 -8 -7 -6 -6 -6 -6 -6 -6 -6 --------- Run | Yrd Mat Min Exi Min Mat Sto Fac Fac Was Fac Ext Cet Arc Hub Machines Accessed 42 | . 8 . 1 . 3 8 3 1 . 1 11 3 1 2 Terminals 34 | . 7 . . . 2 7 2 . . 1 10 3 . 2 Fabricators . | . . . . . . . . . . . . . . . Repair Stations 2 | . . . . . . . . 1 . . 1 . . . Recycling Units 3 | . 1 . . . 1 1 . . . . . . . . Scanalyzers 1 | . . . . . . . 1 . . . . . . . Garrison Access . | . . . . . . . . . . . . . . . Total Hacks 126 | . 27 . 1 . 8 25 9 2 . 1 20 5 25 3 Successful 64 | . 9 . 1 . 2 8 3 2 . 1 11 2 25 . Failed 61 | . 18 . . . 6 17 5 . . . 9 3 . 3 Catastrophic 14 | . 5 . . . . 3 2 . . . 2 1 . 1 Database Lockouts 1 | . . . . . . . 1 . . . . . . . Manual 55 | . 21 . 1 . 9 13 5 . . . 3 2 1 . Terminals 82 | . 23 . . . 5 22 5 . . 1 18 5 . 3 Fabricators . | . . . . . . . . . . . . . . . Repair Stations 4 | . . . . . . . . 2 . . 2 . . . Recycling Units 10 | . 4 . . . 3 3 . . . . . . . . Scanalyzers 4 | . . . . . . . 4 . . . . . . . Garrison Access . | . . . . . . . . . . . . . . . Terminal Hacks 50 | . 6 . 1 . . 6 . . . 1 9 2 25 . Record 30 | . . . . . . . . . . . 3 2 25 . Part Schematic 1 | . . . . . . . . . . . 1 . . . Robot Analysis 3 | . 3 . . . . . . . . . . . . . Prototype ID Bank 2 | . . . . . . 1 . . . . 1 . . . Open Door 5 | . . . . . . 1 . . . 1 3 . . . Unreport Threat 1 | . . . . . . 1 . . . . . . . . Locate Traps 5 | . 3 . . . . 1 . . . . 1 . . . Maintenance Status 1 | . . . . . . 1 . . . . . . . . Registered Components 1 | . . . . . . 1 . . . . . . . . Proto ID Catalog 1 | . . . 1 . . . . . . . . . . . Fabricator Hacks . | . . . . . . . . . . . . . . . Repair Station Hacks 3 | . . . . . . . . 2 . . 1 . . . Scan Component 2 | . . . . . . . . 1 . . 1 . . . Repair 1 | . . . . . . . . 1 . . . . . . Recycling Unit Hacks 3 | . 1 . . . 1 1 . . . . . . . . Report Inventory 3 | . 1 . . . 1 1 . . . . . . . . Scanalyzer 3 | . . . . . . . 3 . . . . . . . Insert Component 1 | . . . . . . . 1 . . . . . . . Analyze 1 | . . . . . . . 1 . . . . . . . Retrieve Study 1 | . . . . . . . 1 . . . . . . . Garrison Access Hacks . | . . . . . . . . . . . . . . . Unauthorized Hacks 5 | . 2 . . . 1 1 . . . . 1 . . . Terminals 3 | . 1 . . . . 1 . . . . 1 . . . Track 1 | . . . . . . 1 . . . . . . . . Botnet 2 | . 1 . . . . . . . . . 1 . . . Fabricators . | . . . . . . . . . . . . . . . Repair Stations . | . . . . . . . . . . . . . . . Recycling Units 2 | . 1 . . . 1 . . . . . . . . . Reject 2 | . 1 . . . 1 . . . . . . . . . Scanalyzers . | . . . . . . . . . . . . . . . Garrison Access . | . . . . . . . . . . . . . . . Data Cores Recovered . | . . . . . . . . . . . . . . . Used . | . . . . . . . . . . . . . . . Hacking Detections 30 | . 8 . . . 3 7 2 . . . 6 2 . 2 Full Trace Events 5 | . 1 . . . . 2 . . . . 1 . . 1 Feedback Events . | . . . . . . . . . . . . . . . Feedback Blocked . | . . . . . . . . . . . . . . . Robot Schematics Acquired . | . . . . . . . . . . . . . . . Robots Built . | . . . . . . . . . . . . . . . Authchips . | . . . . . . . . . . . . . . . Time . | . . . . . . . . . . . . . . . Total Robot Build Rating . | . . . . . . . . . . . . . . . Part Schematics Acquired 2 | . . . . . . . 1 . . . 1 . . . Parts Built . | . . . . . . . . . . . . . . . Authchips . | . . . . . . . . . . . . . . . Time . | . . . . . . . . . . . . . . . Total Part Build Rating . | . . . . . . . . . . . . . . . Part Studies Acquired 1 | . . . . . . . 1 . . . . . . . Parts Repaired 1 | . . . . . . . . 1 . . . . . . Time 30 | . . . . . . . . 30 . . . . . . Parts Recycled . | . . . . . . . . . . . . . . . Recycled Matter . | . . . . . . . . . . . . . . . Retrieved Matter . | . . . . . . . . . . . . . . . Retrieved Components . | . . . . . . . . . . . . . . . Parts Scanalyzed 1 | . . . . . . . 1 . . . . . . . Part Schematics Acquired 1 | . . . . . . . 1 . . . . . . . Parts Damaged . | . . . . . . . . . . . . . . . Bothacking | -11 -10 -10 -10 -9 -8 -8 -7 -6 -6 -6 -6 -6 -6 -6 ------------ Run | Yrd Mat Min Exi Min Mat Sto Fac Fac Was Fac Ext Cet Arc Hub Used RIF Installer . | . . . . . . . . . . . . . . . Robots Hacked 3 | . . . . . . . . . . . 2 . 1 . Non-combat 2 | . . . . . . . . . . . 1 . 1 . Combat 1 | . . . . . . . . . . . 1 . . . Robot Hacks Applied 3 | . . . . . . . . . . . 2 . 1 . parse_system 2 | . . . . . . . . . . . 2 . . . check_alert 1 | . . . . . . . . . . . . . 1 . Relay Couplers Released . | . . . . . . . . . . . . . . . Fabnet Peak Effective % . | . . . . . . . . . . . . . . . Robots Rewired 17 | . . . . . . . . . . . 17 . . . Allies Hacked . | . . . . . . . . . . . . . . . Hacks Repelled . | . . . . . . . . . . . . . . . Allies | -11 -10 -10 -10 -9 -8 -8 -7 -6 -6 -6 -6 -6 -6 -6 -------- Run | Yrd Mat Min Exi Min Mat Sto Fac Fac Was Fac Ext Cet Arc Hub Total Allies 59 | . . . . 3 . 12 . . 20 . 19 5 . . Largest Group 26 | . . . . 3 3 11 . . 20 20 26 17 . . Highest-Rated Group 978 | . . . . 40 40 219 . . 791 791 938 978 . . Highest-Rated Ally 159 | . . . . 16 16 31 . . 50 50 159 152 . . Total Orders . | . . . . . . . . . . . . . . . Ally Attacks 393 | . . . . . 9 42 . . . 51 223 68 . . Total Damage 9842 | . . . . . 116 558 . . . 1003 6567 1598 . . Kills 70 | . . . . . 1 3 . . . 7 50 9 . . Allies Corrupted 1 | . . . . . . . . . . . 1 . . . Allies Melted . | . . . . . . . . . . . . . . . Intel | -11 -10 -10 -10 -9 -8 -8 -7 -6 -6 -6 -6 -6 -6 -6 ------- Run | Yrd Mat Min Exi Min Mat Sto Fac Fac Was Fac Ext Cet Arc Hub Active Infowar (turns) 7902 | . 27 302 780 123 349 1162 1736 137 351 432 1577 377 424 125 IFF 4 | . . . . . . . . 4 . . . . . . Terrain 6562 | . . . . . 349 1162 1736 136 244 432 1577 377 424 125 Traps 1035 | . . . . . . . . 74 107 . 854 . . . Seismic 1205 | . . 302 780 123 . . . . . . . . . . ECM 27 | . 27 . . . . . . . . . . . . . Robot Analysis Total 3 | . 3 . . . . . . . . . . . . . Derelict Logs Recovered 2 | . . 2 . . . . . . . . . . . . Drone Launches . | . . . . . . . . . . . . . . . Drone Recoveries . | . . . . . . . . . . . . . . . Exploration | -11 -10 -10 -10 -9 -8 -8 -7 -6 -6 -6 -6 -6 -6 -6 ------------- Run | Yrd Mat Min Exi Min Mat Sto Fac Fac Was Fac Ext Cet Arc Hub Turns Passed 9742 | . 586 716 780 304 407 1162 2206 137 351 432 1690 377 424 170 Spaces Moved 6779 | 1 424 407 410 209 244 691 1001 89 404 404 1608 475 230 182 Core 18 | . . . . . . . . . . . . . . 18 Treads 151 | . . . . . . . 141 10 . . . . . . Legs 2652 | 1 424 407 410 209 244 691 266 . . . . . . . Wheels 594 | . . . . . . . 594 . . . . . . . Hover 3364 | . . . . . . . . 79 404 404 1608 475 230 164 Flight . | . . . . . . . . . . . . . . . Fastest Speed 50 | 120 120 120 190 120 120 120 85 68 68 68 61 63 63 50 Average Speed 101 | 120 120 155 190 140 120 120 113 83 68 68 67 64 101 76 Slowest Speed 245 | 120 120 190 190 190 120 120 245 220 68 68 71 68 132 150 Overloaded Moves . | . . . . . . . . . . . . . . . Propulsion Burnouts . | . . . . . . . . . . . . . . . Robots Hopped . | . . . . . . . . . . . . . . . Potential Cave-ins 3 | . . . . . . . . . . . 3 . . . Cave-ins Triggered 1 | . . . . . . . . . . . 1 . . . Exploration Rate (%) 52 | 2 64 89 88 42 20 69 22 3 95 8 81 78 90 34 Regions Visited 14 Branch Regions 8 Pre-discovered Areas . | . . . . . . . . . . . . . . . Known Exits Taken 7 | . . . . . 1 1 1 . . 1 1 1 1 . Unknown Exits Taken 5 | 1 1 1 1 1 . . . . . . . . . . Scrap Searched 3 | . . 1 . 2 . . . . . . . . . . Spaces Dug 44 | . . . . . . . 41 . . . . . . 3 Terrain Destroyed 626 | . . . . . 67 126 57 . . . . 62 2 312 Melee 15 | . . . . . . . 12 . . . . . . 3 Projectile 4 | . . . . . 1 1 . . . . . . 2 . AOE 607 | . . . . . 66 125 45 . . . . 62 . 309 Terrain Rammed . | . . . . . . . . . . . . . . . Walls Destroyed . | . . . . . . . . . . . . . . . Machines Disabled . | . . . . . . . . . . . . . . . Actions | -11 -10 -10 -10 -9 -8 -8 -7 -6 -6 -6 -6 -6 -6 -6 --------- Run | Yrd Mat Min Exi Min Mat Sto Fac Fac Was Fac Ext Cet Arc Hub Total 9128 | . 464 449 413 218 326 901 1951 153 477 561 2122 531 356 206 Wait 1594 | . 2 8 . . 28 47 799 30 52 151 353 33 80 11 Move 6765 | . 423 406 409 208 243 690 1000 89 403 403 1606 474 229 182 Hop . | . . . . . . . . . . . . . . . Pick Up 105 | . 7 4 2 1 12 14 24 10 3 . 21 4 1 2 Fast Attach 29 | . . . . 2 1 7 4 5 1 . 8 . 1 . Attach 53 | . 1 . . . 5 11 18 3 . . 7 3 1 4 Detach . | . . . . . . . . . . . . . . . Swap 83 | . 4 3 . 2 8 16 7 5 2 1 21 7 7 . Drop 102 | . 5 6 2 4 11 16 6 11 5 1 28 3 2 2 Fire 304 | . 20 22 . 1 18 99 55 . 4 . 55 7 21 2 Melee 65 | . . . . . . . 36 . . . 12 . 14 3 Ram 9 | . . . . . . . 2 . . 5 2 . . . Kick 3 | . 2 . . . . 1 . . . . . . . . Crush . | . . . . . . . . . . . . . . . Escape Stasis 7 | . . . . . . . . . . . 7 . . . Rewire 9 | . . . . . . . . . 7 . 2 . . . Trap . | . . . . . . . . . . . . . . . Miscellaneous . | . . . . . . . . . . . . . . . Route ------- -11/Scrapyard -10/Materials (discovered 4 exits: [*Mat x2] / [*Min] / [*Sub]) -10/Mines (discovered 2 exits: [*Mat] / *Exi) -10/Exiles -9/Mines (discovered 2 exits: *Mat x2) -8/Materials -8/Storage -7/Factory (discovered 2 exits: *Fac x2) -6/Factory -6/Waste -6/Factory -6/Extension (discovered 3 exits: *Fac x2 / *Cet) -6/Cetus (discovered 3 exits: *Fac x2 / *Arc) -6/Archives (discovered 3 exits: *Fac / *Hub x2) -6/Hub_04(d) (discovered 2 exits: *Fac x2) History --------- Turn | Location | Event 1 | -11/Scrapyard | Discovered new exit (range 0) 1 | -11/Scrapyard | Entered Materials 308 | -10/Materials | Build established: Mutant 429 | -10/Materials | Discovered new exit (range 16) 472 | -10/Materials | Discovered new exit (range 8) 518 | -10/Materials | Discovered new exit (range 10) 565 | -10/Materials | Discovered new exit (range 8) 587 | -10/Materials | Entered Mines 751 | -10/Mines | Learned Materials garrison access intel 1041 | -10/Mines | A weapon hastily lodged in a ceiling crevice suddenly fell to the ground 1238 | -10/Mines | Discovered new exit (range 14) 1280 | -10/Mines | Learned Materials terminal intel 1293 | -10/Mines | Deemed a non-threat by the Exiles lab entrance 1295 | -10/Mines | Discovered new exit (range 5) 1303 | -10/Mines | Entered Exiles 1353 | -10/Exiles | Met 8R-AWN 1385 | -10/Exiles | Met EX-HEX 1436 | -10/Exiles | Met EX-BIN 1459 | -10/Exiles | Aligned with FarCom system 1461 | -10/Exiles | Given EX-Vault access code 1511 | -10/Exiles | Opened EX-Vault 1523 | -10/Exiles | Found Trap Reconfigurator 1563 | -10/Exiles | Warned to stay clear of 0b10 Research branches 1653 | -10/Exiles | Met EX-DEC 1768 | -10/Exiles | Visited The Gauntlet 2060 | -10/Exiles | Discovered new exit (range 14) 2083 | -10/Exiles | Left Exiles lab with Trap Reconfigurator 2083 | -10/Exiles | Entered Mines 2136 | -9/Mines | Assembled infested the area 2141 | -9/Mines | Assisted by a Guerilla fighting off Assembled 2255 | -9/Mines | Discovered new exit (range 13) 2369 | -9/Mines | Discovered new exit (range 9) 2374 | -9/Mines | Assisted by bots powering up and referring to "LRC-V3" 2387 | -9/Mines | Entered Materials 2387 | -8/Materials | Accompanied by 3 allies 2387 | -8/Materials | Evolved 4 slots: Propulsion x2, Utility x2 2388 | -8/Materials | Loaded intel: 12 terminal locations 2389 | -8/Materials | Loaded intel: 1 garrison access location 2394 | -8/Materials | Found Prototype Launcher 2395 | -8/Materials | Identified Rocket Array 2450 | -8/Materials | Lost 3 allies 2487 | -8/Materials | Discovered new exit (range 16) 2654 | -8/Materials | Identified exit to Storage 2741 | -8/Materials | Build established: Scavenger-Skirmisher 2794 | -8/Materials | Entered Storage 3282 | -8/Storage | Assisted by bots powering up and referring to "LRC-V3" 3411 | -8/Storage | Met a pair of Derelict thieves 3476 | -8/Storage | Garrison activated, responded to threat 3526 | -8/Storage | Destroyed 9 combat bots 3533 | -8/Storage | Lost 11 allies 3539 | -8/Storage | Lost 3 parts (1p2n) 3790 | -8/Storage | Lost 6 parts (1p2n1u2w) 3858 | -8/Storage | Discovered new exit (range 8) 3955 | -8/Storage | Identified exit to Factory 3956 | -8/Storage | Entered Factory 3956 | -7/Factory | Evolved 2 slots: Utility x2 4332 | -7/Factory | Discovered new exit (range 9) 4368 | -7/Factory | Central database locked down 5031 | -7/Factory | Build established: Mutant 5046 | -7/Factory | Lost 4 parts (2n1u1w) 5383 | -7/Factory | Build established: Scavenger-Skirmisher 5695 | -7/Factory | Build established: Scavenger-Assassin 5875 | -7/Factory | Garrison activated, responded to threat 5911 | -7/Factory | Lost 10 parts (2p3n3u2w) 6143 | -7/Factory | Discovered new exit (range 9) 6160 | -7/Factory | Identified exit to Factory 6162 | -7/Factory | Entered another Factory area 6162 | -6/Factory | Evolved 2 slots: Propulsion x1, Utility x1 6289 | -6/Factory | Repaired Enh. Autogun 6299 | -6/Factory | Sucked down chute 6299 | -6/Factory | Entered Waste 6300 | -6/Waste | Joined by Warlord forces that had cleared the area 6579 | -6/Waste | Discovered new exit (range 14) 6650 | -6/Waste | Identified exit to Factory 6650 | -6/Waste | Entered Factory 6650 | -6/Factory | Accompanied by 20 allies 6700 | -6/Factory | Build established: Scout 7019 | -6/Factory | Discovered new exit (range 6) 7021 | -6/Factory | Identified exit to Extension 7082 | -6/Factory | Entered Extension 7082 | -6/Extension | Accompanied by 16 allies 7372 | -6/Extension | Rescued a captive Derelict 7797 | -6/Extension | Spotted B-75 Beast 7823 | -6/Extension | Allies destroyed B-75 Beast 7826 | -6/Extension | Spotted B-75 Beast 7826 | -6/Extension | Allies destroyed B-75 Beast 7839 | -6/Extension | Discovered new exit (range 3) 7840 | -6/Extension | Identified exit to Factory 7855 | -6/Extension | Lost 5 allies 8030 | -6/Extension | Rescued A7 8039 | -6/Extension | Lost 3 allies 8201 | -6/Extension | Build established: Scavenger-Scout 8482 | -6/Extension | First assault squad dispatched 8532 | -6/Extension | Disrupted transfer network 8587 | -6/Extension | Discovered new exit (range 13) 8628 | -6/Extension | Crushed by falling debris 8629 | -6/Extension | System corruption reached 10% 8649 | -6/Extension | Lost 13 allies 8659 | -6/Extension | Lost 5 parts (1p4u) 8694 | -6/Extension | Discovered exit to Factory (range 10) 8699 | -6/Extension | Identified exit to Cetus 8772 | -6/Extension | Entered Cetus 8772 | -6/Cetus | Accompanied by 12 allies (A7) 8777 | -6/Cetus | Acquired a Cetus Manufacturing Module code from A7 8785 | -6/Cetus | Spotted Cetus Guard 8785 | -6/Cetus | Spotted Cetus Guard 8787 | -6/Cetus | Spotted Cetus Guard 8800 | -6/Cetus | Allies destroyed Cetus Guard 8801 | -6/Cetus | Spotted Cetus Guard 8801 | -6/Cetus | Allies destroyed Cetus Guard 8806 | -6/Cetus | Allies destroyed Cetus Guard 8814 | -6/Cetus | Allies destroyed Cetus Guard 8869 | -6/Cetus | Started Cetus Manufacturing Module 8894 | -6/Cetus | Manufactured an Enhanced Grunt 8894 | -6/Cetus | Discovered new exit (range 16) 8903 | -6/Cetus | Identified exit to Archives 8919 | -6/Cetus | Manufactured an Enhanced Grunt 8919 | -6/Cetus | Spotted Cetus Guard 8921 | -6/Cetus | Spotted Cetus Guard 8923 | -6/Cetus | Spotted Cetus Guard 8924 | -6/Cetus | Spotted Cetus Guard 8929 | -6/Cetus | Allies destroyed Cetus Guard 8933 | -6/Cetus | Allies destroyed Cetus Guard 8944 | -6/Cetus | Manufactured an Enhanced Grunt 8961 | -6/Cetus | Allies destroyed Cetus Guard 8969 | -6/Cetus | Manufactured an Enhanced Grunt 8971 | -6/Cetus | Discovered exit to Factory (range 15) 8979 | -6/Cetus | Met Revision 17 8994 | -6/Cetus | Manufactured an Enhanced Grunt 9089 | -6/Cetus | Discovered exit to Factory (range 16) 9149 | -6/Cetus | Entered Archives 9172 | -6/Archives | Unable to access archive contents 9296 | -6/Archives | Discovered exit to Factory (range 20) 9339 | -6/Archives | Discovered new exit (range 16) 9406 | -6/Archives | Unable to access archive contents 9422 | -6/Archives | Unable to access archive contents 9435 | -6/Archives | Unable to access archive contents 9549 | -6/Archives | Discovered new exit (range 14) 9565 | -6/Archives | Identified exit to Hub_04(d) 9573 | -6/Archives | Entered Hub_04(d) 9579 | -6/Hub_04(d) | Discovered exit to Factory (range 13) 9632 | -6/Hub_04(d) | Discovered exit to Factory (range 19) 9683 | -6/Hub_04(d) | Network Hub disabled 9696 | -6/Hub_04(d) | Core integrity fell below 50% 9717 | -6/Hub_04(d) | Lost 5 parts (1p2u2w) 9719 | -6/Hub_04(d) | Network Hub disabled 9732 | -6/Hub_04(d) | Spotted Lightning 9735 | -6/Hub_04(d) | Core integrity fell below 20% 9735 | -6/Hub_04(d) | Spotted Lightning 9735 | -6/Hub_04(d) | Spotted Lightning 9743 | -6/Hub_04(d) | Destroyed by Lightning with EMDS Last Messages --------------- 09719_ The floor emits a surge of raw power. 09720_ Cmb. Airjet destroyed. 09725_ Penetrated by Slug. 09726_ Beamcaster destroyed. 09730_ Gravmag Array destroyed. 09730_ G-50 Soldier misfires. 09731_ Adv. Terrain Scanner destroyed. 09732_ Dropped Lrg. Storage Unit. 09732_ Cmb. Airjet destroyed. 09733_ Penetrated by EMDS Slug. 09733_ Cmb. Airjet destroyed. 09733_ Quantum Reactor severed. 09734_ G-50 Soldier misfires. 09734_ Penetrated by EMDS Slug. 09736_ Imp. Cooling System destroyed. 09740_ C-17 Slicer destroyed. 09740_ Penetrated by EMDS Slug. 09740_ Archive Unit disabled. 09741_ Penetrated by EMDS Slug. 09743_ EMDS Slug penetrates Wall. Map ----- +----------------------------------------------------+ | ? ? ??????? #?# ?#"?"????# ?## " | | ? ? ?? ????### #? ? ??# ?## !! " ## | | ????##???#?#??#?#+#?##?##??# #?# !! "#######? | | ?????????#????#?? ?"""????##???# !! "#?#????? | | ?#??#????##?? ??#???"? ????? ## #????#?? | | ?????????#??? ?#????"? ? ???? ## "#??????# | | ???????????????????"??? ????? #" % "######?? | | ???? ??????????????? ?? ??#???#" = " ###? | | ????????#???#?#????????? ?# #""""""""""" """# | | ?????????????????????? ???# === "# | | ????????#?????????????? ??# %=%! !% "# | | ??????????????????????????# =! "# | | ??????????????????#?????####/######## ## ] """# | | ???????????????????????? # #? #### | | ?????????????????????w?? " #?######?? | | ??????????????????????????? "" """ # = ##???????? | | ?????????????????????????? # ###??????? | | ?????????????????????????????######?" * " # ???? | | ???????????????????################## """"# ?? | | ???????????????????# ! # " | | ???????????????????# """" * # " | | ???????????????????# """" #! " | | ???????????????????# """" " # " | | ???????????????????# """ "T #h " ! | | ???????????????????# ="" g " | | ???????????????????# @c h# " | | ??????????????????## # /####= " | | ???????????? / h =l #%! " | | ??????????????#h"""h "" """ #=g " | | ??????????????# g g g*== " | | ??????????????# """ """ """ #[!! " | | ??????????????# i t #/|] """""" """""" | | ??????????????#############+########"""""""""""""" | | ??????????????????????????# #?????# " " | | ?????????????????????????? ?????# " " | | ????????????????????????H ????# " " | | ???????????????????????? ? ?????# " " | | ??????????????????????? ? ?????# " " | | ??????????????????????#?? ?????# " " | | ?????????????????????????##+#?????# " " | | ??????????????????????????????????# " " | | ??????????????????????????????????# " " | | ??????????????????????????????????# " " | | ??????????????????????????????????# """"""""""""" | | ??????????????????????????????????# | | ??????????????????????????????????# | | ??????????????????????????????????###############? | | ?????????????????????????????????????????????????? | | ?????????????????????????????????????????????????? | | ?????????????????????????????????????????????????? | +----------------------------------------------------+ Best States ------------- Heat Dissipation 83 Energy Generation 25 Energy Capacity 350 Matter Stores 300 Matter Capacity 300 Sight Range 16 Terrain Scan Range 20 Terrain Scan Density 160 ECM Strength 1 Armor Coverage 225 Propulsion Shielding 33 Weapon Shielding 33 Melee Speed Boost 20 Evasion (%) 59 Targeting Accuracy 6 Recoil Reduction 4 Item Schematics ----------------- Hrd. Medium Armor Plating | -7/Factory | Scanalyzed Quantum Capacitor | -6/Extension | Hacked Robot Schematics ------------------ None Fabricated ------------ Nothing Repaired ---------- Enh. Autogun | 29% | -6/Factory Studied --------- Carbon-fiber Leg | -7/Factory | Hacked Alien Tech Used ----------------- None Achievements -------------- Analysis Probe Plot Armor Prison Break Project G-00 Revising The Future We Are Legion Challenges ------------ None Game ------ Seed VariableArchitectHumpback Manual? 0 Play Time 02:08:04 Cumulative 75.7 hours Start 2026.01.22 @ 12:12:48 End 2026.01.31 @ 13:03:02 Sessions 7 Manual Loads 0 Difficulty Rogue Special Mode None Game No. 84 Rogue 84 Adventurer 0 Explorer 0 Win Type - Total 1 Types 1/0/0/0/0/0/0/0/0/0 Lore% 30 Gallery% 37 Achievement% 30 Wizard Run 0 Options --------- Layout 0 ASCII 0 Keyboard 0 Movement Mouse Keybinds 0 Fullscreen 0 Font 16/SmallcapsGlow Map View 88x55 Zoom Use 0% Tactical HUD 1 Map Filters NONE Filters NONE Steam 1 RUN: debdd294-fa3e-494d-9689-83f6b0fd7f0e